Workbook

Sheet Corridors (hidden)
B3: # | C3: Region | D3: Province | E3: Security Complements | F3: Armed | G3: Unarmed | H3: Unit Cost Armed | I3: Unit Cost Unarmed | J3: Monthly Cost | L3: Cost Over 36 Months
B4: 1 | C4: Gautneg North 1 - Mabopane-De Wildt - Winternest | D4: Gauteng | E4: =G4+F4 -> 136 | F4: 38 | G4: 98 | H4: R28,452.00 | I4: R27,367.00 | J4: =F4*H4+G4*I4 -> R3,763,142.00 | K4: =J4*12 -> R45,157,704.00 | L4: =J4*36 -> R135,473,112.00
B5: =B4+1 -> 2 | C5: Gauteng North 2 - Wolmerton- Belle Ombre- Schutte- Queenswood | D5: Gauteng | E5: =G5+F5 -> 232 | F5: 116 | G5: 116 | H5: R28,452.00 | I5: R27,367.00 | J5: =F5*H5+G5*I5 -> R6,475,004.00 | K5: =J5*12 -> R77,700,048.00 | L5: =J5*36 -> R233,100,144.00
B6: =B5+1 -> 3 | C6: Gauteng North 3 - Koedoes-Pienaars-Mears | D6: Gauteng | E6: 256 | F6: 124 | G6: 132 | H6: R28,452.00 | I6: R27,367.00 | J6: R7,140,492.00 | K6: R85,685,904.00 | L6: R257,057,712.00
B7: 4 | C7: Gauteng North 4 - Sauls-Pretoria-Pinedene | D7: Gauteng | E7: 232 | F7: 26 | G7: 206 | H7: R28,452.00 | I7: R27,367.00 | J7: R6,377,354.00 | K7: R76,528,248.00 | L7: R229,584,744.00
B8: Totals | E8: =F8+G8 -> 856 | F8: =SUM(F3:F7) -> 304 | G8: =SUM(G4:G7) -> 552 | J8: =J4+J5+J6+J7 -> R23,755,992.00 | K8: =K4+K5+K6+K7 -> R285,071,904.00 | L8: =L4+L5+L6+L7 -> R855,215,712.00
B9: # | C9: Region | D9: Province | E9: Security Complements | F9: Armed | G9: Unarmed | H9: Unit Cost Armed | I9: Unit Cost Unarmed | J9: Monthly Cost | L9: Cost Over 36 Months
B10: =B7+1 -> 5 | C10: Gauteng East 1 - Leralla-Olifantsfontein - Oakmoor - Tembisa - Limindlela - Kempton Park - Isando - Rhodesfield - Daveyton - Benoni - Brakpan - Springs - Dunswart - Doornfontein - Nigel - Kaalfontein - Ravensklip - Elandsfontein - Germiston | D10: Gauteng | E10: =F10+G10 -> 190 | F10: 90 | G10: 100 | H10: R28,452.00 | I10: R27,367.00 | J10: =H10*F10+G10*I10 -> R5,297,380.00 | K10: =J10*12 -> R63,568,560.00 | L10: =J10*32 -> R169,516,160.00
B11: =B10+1 -> 6 | C11: Gauteng East 2 - Ravensklip-Germiston-George Koch | D11: Gauteng | E11: =F11+G11 -> 200 | F11: 100 | G11: 100 | H11: R28,452.00 | I11: R27,367.00 | J11: =H11*F11+G11*I11 -> R5,581,900.00 | K11: =J11*12 -> R66,982,800.00 | L11: =J11*32 -> R178,620,800.00
B12: 7 | C12: Gauteng East 3 - Delmore - Daveyton - Nigel | D12: Gauteng | E12: 301 | F12: 136 | G12: 165 | H12: R28,452.00 | I12: R27,367.00 | J12: R8,385,027.00 | K12: R100,620,324.00 | L12: R268,320,864.00
B13: 8 | C13: Gauteng East 4 - Kwesine- Wadeville- Elsburg- Vereeniging | D13: Gauteng | E13: 300 | F13: 135 | G13: 165 | H13: R28,452.00 | I13: R27,367.00 | J13: R8,356,575.00 | K13: R100,278,900.00 | L13: R267,410,400.00
B14: Totals | E14: =F14+G14 -> 991 | F14: =SUM(F10:F13) -> 461 | G14: 530 | J14: =J10+J11+J12+J13 -> R27,620,882.00 | K14: =K10+K11+K12+K13 -> R331,450,584.00 | L14: =L10+L11+L12+L13 -> R883,868,224.00
B15: # | C15: Region | D15: Province | E15: Security Complements | F15: Armed | G15: Unarmed | H15: Unit Cost Armed | I15: Unit Cost Unarmed | J15: Monthly Cost | L15: Cost Over 36 Months
B16: =B13+1 -> 9 | C16: Gautneg West 1 - Mlamlankunzi - Midway -Vereeniging | D16: Gauteng | E16: =F16+G16 -> 174 | F16: 84 | G16: 90 | H16: R28,452.00 | I16: R27,367.00 | J16: =F16*H16+G16*I16 -> R4,852,998.00 | K16: =J16*12 -> R58,235,976.00 | L16: =J16*36 -> R174,707,928.00
B17: 10 | C17: Gauteng West 2 -Langlaagte-New Canada- Naledi | D17: Gauteng | E17: =F17+G17 -> 300 | F17: 120 | G17: 180 | H17: R28,452.00 | I17: R27,367.00 | J17: =F17*H17+G17*I17 -> R8,340,300.00 | K17: =J17*12 -> R100,083,600.00 | L17: =J17*36 -> R300,250,800.00
B18: 11 | C18: Gauteng West 3 - Industria- Roodepport- Randfontein - Oberlholser | D18: Gauteng | E18: 204 | F18: 76 | G18: 128 | H18: R28,452.00 | I18: R27,367.00 | J18: R5,665,328.00 | K18: R67,983,936.00 | L18: R203,951,808.00
B19: 12 | C19: Gauteng West 4 - Langlaate- Parkstation -Geoege Goch, Jikeleza, Westgate & Faraday | D19: Gauteng | E19: 300 | F19: 88 | G19: 212 | H19: R28,452.00 | I19: R27,367.00 | J19: R8,305,580.00 | K19: R99,666,960.00 | L19: R299,000,880.00
B20: Totals | E20: =F20+G20 -> 978 | F20: =F16+F17+F18+F19 -> 368 | G20: 610 | J20: =J19+J18+J17+J16 -> R27,164,206.00 | K20: =K16+K17+K18+K19 -> R325,970,472.00 | L20: =L16+L17+L18+L19 -> R977,911,416.00
B21: # | C21: Region | D21: Province | E21: Security Complements | F21: Armed | G21: Unarmed | H21: Unit Cost Armed | I21: Unit Cost Unarmed | J21: Monthly Cost | L21: Cost Over 36 Months
C22: North | D22: Western Cape | E22: =F22+G22 -> 200 | F22: 40 | G22: 160 | H22: R28,452.00 | I22: R27,367.00 | J22: =H22*F22+I22*G22 -> R5,516,800.00 | K22: =J22*12 -> R66,201,600.00 | L22: =J22*36 -> R198,604,800.00
C23: Central | D23: Western Cape | E23: =F23+G23 -> 292 | F23: 82 | G23: 210 | H23: R28,452.00 | I23: R27,367.00 | J23: =H23*F23+I23*G23 -> R8,080,134.00 | K23: =J23*12 -> R96,961,608.00 | L23: =J23*36 -> R290,884,824.00
C24: Ikapa | D24: Western Cape | E24: 226 | F24: 56 | G24: 170 | H24: R28,452.00 | I24: R27,367.00 | J24: R6,245,702.00 | K24: R74,948,424.00 | L24: R224,845,272.00
C25: South | D25: Western Cape | E25: 200 | F25: 40 | G25: 160 | H25: R28,452.00 | I25: R27,367.00 | J25: R5,516,800.00 | K25: R66,201,600.00 | L25: R198,604,800.00
B26: Totals | E26: =F26+G26 -> 918 | F26: =F22+F23+F24+F25 -> 218 | G26: =G22+G23+G24+G25 -> 700 | J26: =J22+J23+J24+J25 -> R25,359,436.00 | K26: =K22+K23+K24+K25 -> R304,313,232.00 | L26: =L22+L23+L24+L25 -> R912,939,696.00
B27: # | C27: Region | D27: Province | E27: Security Complements | F27: Armed | G27: Unarmed | H27: Unit Cost Armed | I27: Unit Cost Unarmed | J27: Monthly Cost | L27: Cost Over 36 Months
B28: =B19+1 -> 13 | C28: Newline Main Line /Crossmoor/Umlazi line / KwaMashu | D28: KwaZulu Natal | E28: =F28+G28 -> 465 | F28: 306 | G28: 159 | H28: R28,452.00 | I28: R27,367.00 | J28: =F28*H28+G28*I28 -> R13,057,665.00 | K28: =J28*12 -> R156,691,980.00 | L28: =J28*36 -> R470,075,940.00
B29: 14 | C29: Central Line / North Coast / South | D29: KwaZulu Natal | E29: =F29+G29 -> 464 | F29: 305 | G29: 159 | H29: R28,452.00 | I29: R27,367.00 | J29: =F29*H29+G29*I29 -> R13,029,213.00 | K29: =J29*12 -> R156,350,556.00 | L29: =J29*36 -> R469,051,668.00
B30: Totals | E30: =F30+G30 -> 929 | F30: =F28+F29 -> 611 | G30: 318 | J30: =J29+J28 -> R26,086,878.00 | K30: =K28+K29 -> R313,042,536.00 | L30: =L28+L29 -> R939,127,608.00
B31: # | C31: Region | D31: Province | E31: Security Complements | F31: Armed | G31: Unarmed | H31: Unit Cost Armed | I31: Unit Cost Unarmed | J31: Monthly Cost | L31: Cost Over 36 Months
B32: =B29+1 -> 15 | C32: Port Elizabeth | D32: Eastern Cape | E32: =SUM(F32:G32) -> 30 | F32: 4 | G32: 26 | H32: R28,452.00 | I32: R27,367.00 | J32: =F32*H32+G32*I32 -> R825,350.00 | K32: =J32*12 -> R9,904,200.00 | L32: =J32*36 -> R29,712,600.00
B33: 16 | C33: East London | D33: Eastern Cape | E33: =SUM(F33:G33) -> 58 | F33: 8 | G33: 50 | H33: R28,452.00 | I33: R27,367.00 | J33: =F33*H33+G33*I33 -> R1,595,966.00 | K33: =J33*12 -> R19,151,592.00 | L33: =J33*36 -> R57,454,776.00
B34: Totals | E34: =F34+G34 -> 88 | F34: =F32+F33 -> 12 | G34: 76 | J34: =J32+J33 -> R2,421,316.00 | K34: =K32+K33 -> R29,055,792.00 | L34: =L32+L33 -> R87,167,376.00
B35: # | C35: Region | D35: Province | E35: Security Complements | F35: Armed | G35: Unarmed | H35: Unit Cost Armed | I35: Unit Cost Unarmed | J35: Monthly Cost | L35: Cost Over 36 Months
B36: =B33+1 -> 17 | C36: De-Aar, Kimberly, Warington, Klerksdorp, Christiana and Bloemhof | D36: Northern Cape | E36: =F36+G36 -> 24 | F36: 0 | G36: 24 | H36: R28,452.00 | I36: R27,367.00 | J36: =F36*H36+G36*I36 -> R656,808.00 | K36: =J36*12 -> R7,881,696.00 | L36: =J36*36 -> R23,645,088.00
B37: 18 | C37: Bloemfontein, Springfontein, Theunesin, Heineman, Kroonstad, Brandford, Sasolburg, Noupoort and Coalsburg | D37: Free State | E37: =F37+G37 -> 152 | F37: 8 | G37: 144 | H37: R28,452.00 | I37: R27,367.00 | J37: =F37*H37+G37*I37 -> R4,168,464.00 | K37: =J37*12 -> R50,021,568.00 | L37: =J37*36 -> R150,064,704.00
B38: 19 | C38: Burgersdorp, Rosemead, Cradock, Cookhouse and Ellisdale | D38: Eastern Cape | E38: 20 | F38: 0 | G38: 20 | H38: R28,452.00 | I38: R27,367.00 | J38: R547,340.00 | K38: R6,568,080.00 | L38: R19,704,240.00
B39: 20 | C39: Naboomspruit, Mokopane, Polokwane, Soekmekaar, Makhado, Mopane and Musina | D39: Limpopo | E39: 24 | F39: 0 | G39: 24 | H39: R28,452.00 | I39: R27,367.00 | J39: R656,808.00 | K39: R7,881,696.00 | L39: R23,645,088.00
B40: 21 | C40: Komatipoort, Malelane, Kaapmeiden, Nelspruit, Middelburg and Standerton | D40: Mpumalanga | E40: 24 | F40: 0 | G40: 24 | H40: R28,452.00 | I40: R27,367.00 | J40: R656,808.00 | K40: R7,881,696.00 | L40: R23,645,088.00
B41: Totals | E41: =F41+G41 -> 244 | F41: =SUM(F36:F40) -> 8 | G41: 236 | H41: R142,260.00 | I41: R136,835.00 | J41: R6,686,228.00 | K41: =K36+K37+K38+K39+K40 -> R80,234,736.00 | L41: =J41*36 -> R240,704,208.00
B42: National Totals | E42: =E8+E14+E20+E26+E30+E34+E41 -> 5004 | F42: =F8+F14+F20+F26+F30+F34+F41 -> 1982 | G42: 3022 | J42: =J41+J34+J30+J26+J20+J14+J8 -> R139,094,938.00 | L42: =L41+L34+L30+L26+L20+L14+L8 -> R4,896,934,240.00
L44: =L42/3 -> R1,632,311,413.33

Sheet Current (hidden)
A1: SECURITY REQUIREMENTS FOR PHASES 1-2&3 BASED ON CURRENT RATES
A2: # | B2: Region / Business Unit | C2: Security Complement | D2: GRADE C | F2: GRADE C | H2: Monthly Cost | I2: Cost for Six Months Extension Incl. Vat
D3: Armed | E3: Unarmed | F3: Armed | G3: Unarmed
A4: 1 | B4: Gauteng North | C4: =D4+E4 -> 856 | D4: 304 | E4: 552 | F4: R20,400.00 | G4: R19,700.00 | H4: =((D4*F4)+(E4*G4)) -> R17,076,000.00 | I4: =H4*6 -> R102,456,000.00
A5: =A4+1 -> 2 | B5: Gauteng East | C5: =D5+E5 -> 991 | D5: 461 | E5: 530 | F5: =F4 -> R20,400.00 | G5: =G4 -> R19,700.00 | H5: =((D5*F5)+(E5*G5)) -> R19,845,400.00 | I5: =H5*6 -> R119,072,400.00
A6: =A5+1 -> 3 | B6: Gauteng West | C6: 978 | D6: 368 | E6: 610 | F6: =F5 -> R20,400.00 | G6: R19,700.00 | H6: R19,524,200.00 | I6: R117,145,200.00
A7: 4 | B7: Western Cape | C7: 918 | D7: 218 | E7: 700 | F7: R20,400.00 | G7: R19,700.00 | H7: R18,237,200.00 | I7: R109,423,200.00
A8: 5 | B8: KwaZulu Natal | C8: 929 | D8: 611 | E8: 318 | F8: R20,400.00 | G8: R19,700.00 | H8: R18,729,000.00 | I8: R112,374,000.00
A9: 6 | B9: Eastern Cape | C9: 88 | D9: 12 | E9: 76 | F9: R20,400.00 | G9: R19,700.00 | H9: R1,742,000.00 | I9: R10,452,000.00
A10: 7 | B10: MLPS Nationally | C10: 244 | D10: 8 | E10: 236 | F10: R20,400.00 | G10: R19,700.00 | H10: R4,812,400.00 | I10: R28,874,400.00
A11: Total | C11: =C4+C5+C6+C7+C8+C9+C10 -> 5004 | D11: =SUM(D4:D10) -> 1982 | E11: =SUM(E4:E10) -> 3022 | H11: =H4+H5+H6+H7+H8+H9+H10 -> R99,966,200.00 | I11: =I4+I5+I6+I7+I8+I9+I10 -> R599,797,200.00
I13: =I11*2 -> R1,199,594,400.00
I14: =I11*7%+I11 -> R641,783,004.00
I16: R 578,067,600.00
F17: =F4*7%+F4 -> R21,828.00 | G17: =G4*7%+G4 -> R21,079.00

Sheet 7% Increase (hidden)
A1: SECURITY REQUIREMENTS FOR PHASES 1-2&3 BASED ON CURRENT RATES
A2: # | B2: Region / Business Unit | C2: Security Complement | D2: GRADE C | F2: GRADE C | H2: Monthly Cost | I2: Cost for Six Months Extension Incl. Vat
D3: Armed | E3: Unarmed | F3: Armed | G3: Unarmed
A4: 1 | B4: Gauteng North | C4: =D4+E4 -> 856 | D4: 304 | E4: 552 | F4: R21,828.00 | G4: R21,079.00 | H4: =((D4*F4)+(E4*G4)) -> R18,271,320.00 | I4: =H4*6 -> R109,627,920.00
A5: =A4+1 -> 2 | B5: Gauteng East | C5: =D5+E5 -> 991 | D5: 461 | E5: 530 | F5: R21,828.00 | G5: R21,079.00 | H5: =((D5*F5)+(E5*G5)) -> R21,234,578.00 | I5: =H5*6 -> R127,407,468.00
A6: =A5+1 -> 3 | B6: Gauteng West | C6: 978 | D6: 368 | E6: 610 | F6: R21,828.00 | G6: R21,079.00 | H6: R20,890,894.00 | I6: R125,345,364.00
A7: 4 | B7: Western Cape | C7: 918 | D7: 218 | E7: 700 | F7: R21,828.00 | G7: R21,079.00 | H7: R19,513,804.00 | I7: R117,082,824.00
A8: 5 | B8: KwaZulu Natal | C8: 929 | D8: 611 | E8: 318 | F8: R21,828.00 | G8: R21,079.00 | H8: R20,040,030.00 | I8: R120,240,180.00
A9: 6 | B9: Eastern Cape | C9: 88 | D9: 12 | E9: 76 | F9: R21,828.00 | G9: R21,079.00 | H9: R1,863,940.00 | I9: R11,183,640.00
A10: 7 | B10: MLPS Nationally | C10: 244 | D10: 8 | E10: 236 | F10: R21,828.00 | G10: R21,079.00 | H10: R5,149,268.00 | I10: R30,895,608.00
A11: Total | C11: =C4+C5+C6+C7+C8+C9+C10 -> 5004 | D11: =D4+D5+D6+D7+D8+D9+D10 -> 1982 | E11: 3022 | H11: =H4+H5+H6+H7+H8+H9+H10 -> R106,963,834.00 | I11: =I4+I5+I6+I7+I8+I9+I10 -> R641,783,004.00
C13: =C11/2 -> 2502 | I13: =I11*2 -> R1,283,566,008.00
C14: =C11+C13 -> 7506 | I14: =I11*7%+I11 -> R686,707,814.28
E16: =D8/2 -> 305.5 | F16: =E8/2 -> 159 | I16: R 578,067,600.00
I18: =I11-48395604 -> R593,387,400.00
I19: =I11-I18 -> R48,395,604.00

Sheet Envisaged Open Tender (hidden)
B2: # | C2: Region / Business Unit | D2: Security Complement | E2: GRADE C | G2: GRADE C | I2: Monthly Cost | J2: Annual Cost
E3: Armed | F3: Unarmed | G3: Armed | H3: Unarmed
B4: 1 | C4: Gauteng North | D4: =E4+F4 -> 856 | E4: 304 | F4: 552 | G4: R22,406.50 | H4: R21,486.50 | I4: =((G4*E4)+(F4*H4)) -> R18,672,123.47 | J4: =I4*12 -> R224,065,481.58 | K4: =O4-D4 -> -232 | L4: Gauteng North | M4: 188 | N4: 436 | O4: =M4+N4 -> 624
B5: =B4+1 -> 2 | C5: Gauteng East | D5: =E5+F5 -> 991 | E5: 461 | F5: 530 | G5: R22,406.50 | H5: R21,486.50 | I5: =((G5*E5)+(F5*H5)) -> R21,717,240.88 | J5: =I5*12 -> R260,606,890.57 | K5: =O5-D5 -> 0 | L5: Gauteng East | M5: 461 | N5: 530 | O5: =M5+N5 -> 991
B6: =B5+1 -> 3 | C6: Gauteng West | D6: 978 | E6: 368 | F6: 610 | G6: R22,406.50 | H6: R21,486.50 | I6: R21,352,356.39 | J6: R256,228,276.67 | K6: 0 | L6: Gauteng West | M6: 368 | N6: 610 | O6: 978
B7: 4 | C7: Western Cape | D7: 918 | E7: 218 | F7: 700 | G7: R22,406.50 | H7: R21,486.50 | I7: R19,925,166.43 | J7: R239,101,997.12 | K7: 0 | L7: Western Cape | M7: 218 | N7: 700 | O7: 918
B8: 5 | C8: KwaZulu Natal | D8: 929 | E8: 611 | F8: 318 | G8: R22,406.50 | H8: R21,486.50 | I8: R20,523,077.92 | J8: R246,276,935.03 | K8: 0 | L8: KwaZulu Natal | M8: 611 | N8: 318 | O8: 929
B9: 6 | C9: Eastern Cape | D9: 88 | E9: 12 | F9: 76 | G9: R22,406.50 | H9: R21,486.50 | I9: R1,901,851.95 | J9: R22,822,223.34 | K9: 0 | L9: Eastern Cape | M9: 12 | N9: 76 | O9: 88
B10: 7 | C10: MLPS Nationally | D10: 244 | E10: 8 | F10: 236 | G10: R22,406.50 | H10: R21,486.50 | I10: R5,250,065.85 | J10: R63,000,790.17 | K10: -156 | L10: MLPS | M10: 0 | N10: 88 | O10: 88
B11: Total | D11: =D4+D5+D6+D7+D8+D9+D10 -> 5004 | E11: =SUM(E4:E10) -> 1982 | F11: =SUM(F4:F10) -> 3022 | I11: =I4+I5+I6+I7+I8+I9+I10 -> R109,341,882.87 | J11: =J4+J5+J6+J7+J8+J9+J10 -> R1,312,102,594.47 | M11: =M4+M5+M6+M7+M8+M9+M10 -> 1858 | N11: =N4+N5+N6+N7+N8+N9+N10 -> 2758 | O11: 4616
G13: =G4*E4 -> R6,811,575.81 | H13: =H4*F4 -> R11,860,547.66 | I13: =G13+H13 -> R18,672,123.47 | J13: =J11-1200000000 -> R112,102,594.47 | L13: 4856
J14: =J13/2 -> R56,051,297.24
F15: 439 | G15: 780 | J15: =J14+'7% Increase'!I19 -> R104,446,901.24
F16: 1339 | G16: 1524
D17: 2 | E17: =F17+G17 -> 4082 | F17: =F15+F16 -> 1778 | G17: =G15+G16 -> 2304
C19: 20400 | D19: 19700 | L19: R14,947.13 | P19: R14,947.13
C20: =C19*19%+C19 -> R24,276.00 | D20: =D19*19%+D19 -> R23,443.00 | F20: Rates Applicable from March 2023 to February 2024 at Grade C direct cost of R 14,947.13 excluding shares, overheads and Vat
F21: Percentage for Shares and Overheads | G21: Armed | H21: Unarmed | L21: 20400 | M21: 19700
F22: 40% | G22: =H22+800 -> R21,725.00 | H22: R20,925.00 | I22: Excl. Vat | L22: =L21*7%+L21 -> 21828 | M22: =M21*7%+M21 -> 21079
G23: =G22*15%+G22 -> R24,983.75 | H23: =H22*15%+H22 -> R24,063.75 | I23: Vat Inclusive | L23: =L21*13%+L21 -> 23052 | M23: =M21*13%+M21 -> 22261
F24: 30% | G24: =H24+800 -> R20,231.27 | H24: =L19*30%+L19 -> R19,431.27 | I24: Excl. Vat
G25: =G24*15%+G24 -> R23,265.96 | H25: =H24*15%+H24 -> R22,345.96 | I25: Vat Inclusive
F26: 25% | G26: =H26+800 -> R19,483.91 | H26: =P19*25%+P19 -> R18,683.91 | I26: Excl. Vat
G27: =G26*15%+G26 -> R22,406.50 | H27: =H26*15%+H26 -> R21,486.50 | I27: Vat Inclusive
F31: Own | G31: 4856 | H31: 51.00%
F32: Private Security | G32: =D11 -> 5004 | H32: 49.00%
G33: =G31+G32 -> 9860 | H33: =H31+H32 -> 100.00%

Sheet WP-1-GW
C1: REQUEST FOR PROPOSAL – PRIVATE SECURITY SERVICES TENDER NUMBER: HO/SEC/002/05/2023
B2: GAUTENG WEST - WORK PACKAGE 1
B3: # | C3: Region | D3: Province | E3: Total Security Complements | F3: Grade - C | H3: Grade C Units Cost Incl. Vat | J3: Monthly Value Inlc. Vat | K3: Year 1 Incl. VAT | L3: Year 2 Including Escalation and VAT | M3: Year 3 Including Escalation and VAT | N3: Total Cost Over 36 Months Incl. Vat
F4: Armed | G4: Unarmed | H4: Armed | I4: Unarmed
B5: 1 | C5: Gautneg West 1 - Mlamlankunzi - Midway -Vereeniging | D5: Gauteng | E5: =F5+G5 -> 174 | F5: 84 | G5: 90
B6: =B5+1 -> 2 | C6: Gauteng West 2 -Langlaagte-New Canada- Naledi | D6: Gauteng | E6: =F6+G6 -> 300 | F6: 120 | G6: 180
B7: 3 | C7: Gauteng West 3 - Industria- Roodepport- Randfontein - Oberlholser | D7: Gauteng | E7: 204 | F7: 76 | G7: 128
B8: 4 | C8: Gauteng West 4 - Langlaate- Parkstation -Geoege Goch, Jikeleza, Westgate & Faraday | D8: Gauteng | E8: 300 | F8: 88 | G8: 212
B9: Total | E9: =E5+E6+E7+E8 -> 978 | F9: =SUM(F5:F8) -> 368 | G9: =SUM(G5:G8) -> 610

Sheet WP-2-GE
B2: GAUTENG EAST - WORK PACKAGE 2
B3: # | C3: Region | D3: Province | E3: Total Security Complements | F3: Grade C Complements | H3: Grade C Units Cost Incl. Vat | J3: Monthly Value Incl. Vat | K3: Year 1 Incl. VAT | L3: Year 2 Including Escalation and VAT | M3: Year 3 Including Escalation and VAT | N3: Total Cost Over 36 Months Incl. Vat
F4: Armed | G4: Unarmed | H4: Armed | I4: Unarmed
B5: 1 | C5: Gauteng East 1 - Leralla-Olifantsfontein - Oakmoor - Tembisa - Limindlela - Kempton Park - Isando - Rhodesfield - Daveyton - Benoni - Brakpan - Springs - Dunswart - Doornfontein - Nigel - Kaalfontein - Ravensklip - Elandsfontein - Germiston | D5: Gauteng | E5: =F5+G5 -> 190 | F5: 90 | G5: 100
B6: =B5+1 -> 2 | C6: Gauteng East 2 - Ravensklip-Germiston-George Koch | D6: Gauteng | E6: =F6+G6 -> 200 | F6: 100 | G6: 100
B7: 3 | C7: Gauteng East 3 - Delmore - Daveyton - Nigel | D7: Gauteng | E7: 301 | F7: 136 | G7: 165
B8: 4 | C8: Gauteng East 4 - Kwesine- Wadeville- Elsburg- Vereeniging | D8: Gauteng | E8: 300 | F8: 135 | G8: 165
B9: Totals | E9: =E5+E6+E7+E8 -> 991 | F9: =F5+F6+F7+F8 -> 461 | G9: =G5+G6+G7+G8 -> 530

Sheet WP-3 GN
B1: GAUTENG NORTH - WORK PACKAGE 3
B2: # | C2: Region | D2: Province | E2: Total Security Complements | F2: Grade C Complements | H2: Grade C Units Cost Incl. Vat | J2: Monthly Value Incl. Vat | K2: Year 1 Incl. VAT | L2: Year 2 Including Escalation and VAT | M2: Year 3 Including Escalation and VAT | N2: Total Cost Over 36 Months Incl. Vat
F3: Armed | G3: Unarmed | H3: Armed | I3: Unarmed
B4: 1 | C4: Gautneg North 1 - Mabopane-De Wildt - Winternest | D4: Gauteng | E4: =G4+F4 -> 136 | F4: 38 | G4: 98
B5: =B4+1 -> 2 | C5: Gauteng North 2 - Wolmerton- Belle Ombre- Schutte- Queenswood | D5: Gauteng | E5: =G5+F5 -> 232 | F5: 116 | G5: 116
B6: =B5+1 -> 3 | C6: Gauteng North 3 - Koedoes-Pienaars-Mears | D6: Gauteng | E6: 256 | F6: 124 | G6: 132
B7: 4 | C7: Gauteng North 4 - Sauls-Pretoria-Pinedene | D7: Gauteng | E7: 232 | F7: 26 | G7: 206
B8: Totals | E8: =E4+E5+E6+E7 -> 856 | F8: =F4+F5+F6+F7 -> 304 | G8: 552

Sheet WP-4-WC
B2: WESTERN CAPE - WORK PACKAGE 4
B3: # | C3: Region | D3: Province | E3: Total Security Complements | F3: Grade C Complements | H3: Grade C Units Cost Incl. Vat | J3: Monthly Value Inlc. Vat | K3: Year 1 Incl. VAT | L3: Year 2 Including Escalation and VAT | M3: Year 3 Including Escalation and VAT | N3: Total Cost Over 36 Months Incl. Vat
F4: Armed | G4: Unarmed | H4: Armed | I4: Unarmed
B5: 1 | C5: North | D5: Western Cape | E5: =F5+G5 -> 200 | F5: 40 | G5: 160
B6: 2 | C6: Central | D6: Western Cape | E6: =F6+G6 -> 292 | F6: 82 | G6: 210
B7: 3 | C7: Ikapa | D7: Western Cape | E7: 226 | F7: 56 | G7: 170
B8: 4 | C8: South | D8: Western Cape | E8: 200 | F8: 40 | G8: 160
B9: Totals | E9: =E5+E6+E7+E8 -> 918 | F9: =F5+F6+F7+F8 -> 218 | G9: 700

Sheet WP-5-KZN
B2: KWAZULU NATAL - WORK PACKAGE 5
B3: # | C3: Region | D3: Province | E3: Total Security Complements | F3: Grade C Complements | H3: Grade C Units Cost Incl. Vat | J3: Monthly Value Inlc. Vat | K3: Year 1 Incl. VAT | L3: Year 2 Including Escalation and VAT | M3: Year 3 Including Escalation and VAT | N3: Total Cost Over 36 Months Incl. Vat
F4: Armed | G4: Unarmed | H4: Armed | I4: Unarmed
B5: 1 | C5: Newline Main Line /Crossmoor/Umlazi line / KwaMashu | D5: KwaZulu Natal | E5: =F5+G5 -> 465 | F5: 306 | G5: 159
B6: =B5+1 -> 2 | C6: Central Line / North Coast / South | D6: KwaZulu Natal | E6: =F6+G6 -> 464 | F6: 305 | G6: 159
B7: Total | E7: =E5+E6 -> 929 | F7: =F5+F6 -> 611 | G7: 318

Sheet WP-6-EC
B2: EASTERN CAPE - WORKPACKAGE 6
B3: # | C3: Region | D3: Province | E3: Total Security Complements | F3: Grade C Complements | H3: Grade C Units Cost Incl. Vat | J3: Monthly Value Inlc. Vat | K3: Year 1 Incl. VAT | L3: Year 2 Including Escalation and VAT | M3: Year 3 Including Escalation and VAT | N3: Total Cost Over 36 Months Incl. Vat
F4: Armed | G4: Unarmed | H4: Armed | I4: Unarmed
B5: 1 | C5: Port Elizabeth | D5: Eastern Cape | E5: =SUM(F5:G5) -> 40 | F5: 4 | G5: 36
B6: =B5+1 -> 2 | C6: East London | D6: Eastern Cape | E6: =SUM(F6:G6) -> 68 | F6: 8 | G6: 60
B7: Total | E7: =E5+E6 -> 108 | F7: =F5+F6 -> 12 | G7: 96

Sheet WP-7-MLPS
B2: MAINLINE PASSENGER SERVICES (MLPS) - WORK PACKAGE 7
B3: # | C3: Region | D3: Province | E3: Security Complements | F3: Grade C Complements | H3: Grade C Units Cost Incl. Vat | J3: Monthly Value Inlc. Vat | K3: Year 1 Incl. VAT | L3: Year 2 Including Escalation and VAT | M3: Year 3 Including Escalation and VAT | N3: Total Cost Over 36 Months Incl. Vat
F4: Armed | G4: Unarmed | H4: Armed | I4: Unarmed
B5: 1 | C5: De-Aar, Kimberly, Warington, Klerksdorp, Christiana and Bloemhof | D5: Northern Cape | E5: =F5+G5 -> 24 | F5: 0 | G5: 24
B6: =B5+1 -> 2 | C6: Bloemfontein, Springfontein, Theunesin, Heineman, Kroonstad, Brandford, Sasolburg, Noupoort and Coalsburg | D6: Free State | E6: =F6+G6 -> 152 | F6: 8 | G6: 144
B7: 3 | C7: Naboomspruit, Mokopane, Polokwane, Soekmekaar, Makhado, Mopane and Musina | D7: Limpopo | E7: 24 | F7: 0 | G7: 24
B8: 4 | C8: Komatipoort, Malelane, Kaapmeiden, Nelspruit, Middelburg and Standerton | D8: Mpumalanga | E8: 24 | F8: 0 | G8: 24
B9: Total | E9: =E5+E6+E7+E8 -> 224 | F9: =F5+F6+F7+F8 -> 8 | G9: 216

Sheet WP-8-Ad-hoc
B2: National Ad-Hoc Intervention Unit | C2: *Must have offices in KZN, WC and GP
A3: AD-HOC SERVICES AS-AND-WHEN REQUIRED - Estimate for all 8 work packages
A4: # | B4: Description of Service | C4: Unit of Measure | D4: Unit Cost Incl. Vat | E4: Estimate Year 1 | F4: Year 1 Incl. VAT | G4: Unit Cost Year 2 Including Escalation and VAT | H4: Estimate Year 2 to Year 3 | I4: Year 2 Including VAT | J4: Year 3 Including Escalation and VAT | K4: Total Cost Over 36 Months Incl. Vat
A5: 1 | B5: B6 SUV Armoured vehicles as-and-when required wet rate. | C5: R/Km | E5: =40000*5 -> 200000 | H5: =E5*2 -> 400000
B6: B6 Armoured Personnel Carrier (must seat 10 persons) | C6: Per 12 Hour Shift | E6: =60*9 -> 540 | H6: =E6*2 -> 1080
A7: =A5+1 -> 2 | B7: Grade B Armed Tactical Security officers of Ten Man Team Including Driver for personnel carrier . Shotguns compulsory. | C7: Per 12 Hour Shift for Team of 10 | E7: 540 | H7: 1080
A8: =A6+1 -> 1 | B8: Grade B Armed 2-Man Tactical Security officers/drivers for armoured SUV | C8: Per 12 Hour Shift for Team of 2 | E8: =5*30*2*3*7 -> 6300 | H8: 12600
B9: Gade C Armed Security Officers @ rate per guard per shift | C9: Rate Per Guard Per 12 Hour Shift | E9: 24000 | H9: 48000
A10: =A7+1 -> 3 | B10: K9 Officer with Narcotic dogs. | C10: Per 12 Hour Shift | E10: =450*5 -> 2250 | H10: 4500
B11: K9 Officer with Explosive dogs. | C11: Per 12 Hour Shift | E11: =450*5 -> 2250 | H11: 4500
A12: =A10+1 -> 4 | B12: Provision of Motor Vehicles LDV single Cab with Grade B driver wet rate. Estimated 250 km per shift | C12: Per 12 Hour Shift | E12: =14*2*30*9 -> 7560 | H12: 15120
A13: =A12+1 -> 5 | B13: Provision of Motor Vehicles LDV Double Cab with Grade B driver wet rate. Estimated 250 km per shift | C13: Per 12 Hour Shift | E13: =14*2*30*9 -> 7560 | H13: 15120
A14: 6 | B14: Provision of Scrambler Motorcycles with Grade C rider wet rate. Estimated 100 km per shift | C14: Per 12 Hour Shift | E14: =14*2*30*9*0.5 -> 3780 | H14: 7560
A15: 7 | B15: Provision of quadbikes with Grade C rider wet rate.Estimated 50 km per shift | C15: Per 12 Hour Shift | E15: =14*2*30*9*0.5 -> 3780 | H15: 7560
A16: Total
